[Event "Titled Tuesday Blitz August 08 Early 2023"]
[White "Pavlidou, Ekaterini"]
[Black "Sanhueza, Cristian"]
[WhiteFideId "4213262"]
[BlackFideId "116815"]
[WhiteElo "2314"]
[BlackElo "2463"]
[Result "1-0"]
[Round "5"]
[TimeControl "180+1"]
[Date "2023.08.08"]
[WhiteClock "0:00:31"]
[BlackClock "0:00:03"]
[Board "185"]

1. d4 {[%clk 0:03:00]}  Nf6 {[%clk 0:02:59]} 2. c4 {[%clk 0:02:59]}  g6 {[%clk 0:02:46]} 3. Nc3 {[%clk 0:02:59]}  Bg7 {[%clk 0:02:47]} 4. e4 {[%clk 0:02:59]}  d6 {[%clk 0:02:48]} 5. Bd3 {[%clk 0:03:00]}  O-O {[%clk 0:02:48]} 6. Nge2 {[%clk 0:03:00]}  Nc6 {[%clk 0:02:47]} 7. f3 {[%clk 0:03:00]}  e5 {[%clk 0:02:45]} 8. d5 {[%clk 0:03:00]}  Nd4 {[%clk 0:02:45]} 9. Nxd4 {[%clk 0:02:59]}  exd4 {[%clk 0:02:46]} 10. Ne2 {[%clk 0:02:59]}  Nd7 {[%clk 0:02:43]} 11. f4 {[%clk 0:02:58]}  Re8 {[%clk 0:02:42]} 12. O-O {[%clk 0:02:57]}  Nc5 {[%clk 0:02:42]} 13. Ng3 {[%clk 0:02:55]}  h5 {[%clk 0:02:38]} 14. Re1 {[%clk 0:02:48]}  Bg4 {[%clk 0:02:35]} 15. Qc2 {[%clk 0:02:47]}  h4 {[%clk 0:02:33]} 16. Nh1 {[%clk 0:02:46]}  a5 {[%clk 0:02:23]} 17. Nf2 {[%clk 0:02:44]}  Bh5 {[%clk 0:02:17]} 18. b3 {[%clk 0:02:42]}  f5 {[%clk 0:02:09]} 19. Bb2 {[%clk 0:02:32]}  fxe4 {[%clk 0:01:56]} 20. Nxe4 {[%clk 0:02:30]}  h3 {[%clk 0:01:39]} 21. Ng5 {[%clk 0:02:16]}  Qf6 {[%clk 0:01:27]} 22. Nxh3 {[%clk 0:02:09]}  Bg4 {[%clk 0:01:14]} 23. Bxg6 {[%clk 0:02:03]}  Rxe1+ {[%clk 0:00:42]} 24. Rxe1 {[%clk 0:02:02]}  Bxh3 {[%clk 0:00:42]} 25. gxh3 {[%clk 0:01:55]}  Qxf4 {[%clk 0:00:36]} 26. Qg2 {[%clk 0:01:44]}  Rf8 {[%clk 0:00:31]} 27. Bc1 {[%clk 0:01:41]}  Qf3 {[%clk 0:00:25]} 28. h4 {[%clk 0:01:16]}  d3 {[%clk 0:00:20]} 29. Qxf3 {[%clk 0:01:10]}  Rxf3 {[%clk 0:00:21]} 30. Kg2 {[%clk 0:01:08]}  Rf8 {[%clk 0:00:17]} 31. h5 {[%clk 0:01:08]}  Bd4 {[%clk 0:00:17]} 32. Bd2 {[%clk 0:01:07]}  Rf2+ {[%clk 0:00:16]} 33. Kg3 {[%clk 0:01:07]}  Rxd2 {[%clk 0:00:17]} 34. Re8+ {[%clk 0:01:07]}  Kg7 {[%clk 0:00:17]} 35. Re7+ {[%clk 0:01:08]}  Kh6 {[%clk 0:00:13]} 36. Rh7+ {[%clk 0:01:04]}  Kg5 {[%clk 0:00:13]} 37. h4+ {[%clk 0:01:03]}  Kf6 {[%clk 0:00:14]} 38. Rf7+ {[%clk 0:01:03]}  Ke5 {[%clk 0:00:14]} 39. Re7+ {[%clk 0:00:47]}  Kf6 {[%clk 0:00:13]} 40. Rf7+ {[%clk 0:00:47]}  Ke5 {[%clk 0:00:14]} 41. Rf5+ {[%clk 0:00:40]}  Ke4 {[%clk 0:00:14]} 42. Rf3+ {[%clk 0:00:38]}  Ke5 {[%clk 0:00:11]} 43. h6 {[%clk 0:00:38]}  Re2 {[%clk 0:00:03]} 44. h7 {[%clk 0:00:31]}  d2 {[%clk 0:00:03]} 1-0


[Site "https://www.chess.com"]

[Event "Titled Tuesday Blitz August 08 Early 2023"]
[White "favesaul"]
[Black "Valle Maytin, Luis Enrique"]
[BlackFideId "3503666"]
[WhiteElo "2461"]
[BlackElo "2313"]
[Result "1-0"]
[Round "5"]
[TimeControl "180+1"]
[Date "2023.08.08"]
[WhiteClock "0:00:14"]
[BlackClock "0:00:00"]
[Board "186"]

1. e4 {[%clk 0:03:00]}  c5 {[%clk 0:02:59]} 2. Nf3 {[%clk 0:02:56]}  g6 {[%clk 0:02:59]} 3. d4 {[%clk 0:02:57]}  cxd4 {[%clk 0:02:59]} 4. Nxd4 {[%clk 0:02:57]}  Nc6 {[%clk 0:03:00]} 5. c4 {[%clk 0:02:57]}  Nf6 {[%clk 0:02:59]} 6. Nc3 {[%clk 0:02:56]}  Nxd4 {[%clk 0:02:59]} 7. Qxd4 {[%clk 0:02:55]}  d6 {[%clk 0:03:00]} 8. Be2 {[%clk 0:02:54]}  Bg7 {[%clk 0:03:00]} 9. O-O {[%clk 0:02:53]}  O-O {[%clk 0:03:01]} 10. Qd3 {[%clk 0:02:42]}  Be6 {[%clk 0:02:57]} 11. Be3 {[%clk 0:02:40]}  Qa5 {[%clk 0:02:52]} 12. Rac1 {[%clk 0:02:26]}  Rfc8 {[%clk 0:02:50]} 13. b3 {[%clk 0:02:26]}  a6 {[%clk 0:02:36]} 14. f4 {[%clk 0:02:03]}  b5 {[%clk 0:02:15]} 15. cxb5 {[%clk 0:02:02]}  axb5 {[%clk 0:01:59]} 16. Qxb5 {[%clk 0:01:39]}  Qxb5 {[%clk 0:01:50]} 17. Bxb5 {[%clk 0:01:38]}  Rxc3 {[%clk 0:01:05]} 18. Rxc3 {[%clk 0:01:37]}  Nxe4 {[%clk 0:01:06]} 19. Rc2 {[%clk 0:01:23]}  Nc3 {[%clk 0:01:01]} 20. Bd3 {[%clk 0:01:21]}  Nxa2 {[%clk 0:00:55]} 21. Bc4 {[%clk 0:01:15]}  d5 {[%clk 0:00:47]} 22. Bb5 {[%clk 0:00:54]}  d4 {[%clk 0:00:43]} 23. Bf2 {[%clk 0:00:54]}  Bxb3 {[%clk 0:00:32]} 24. Rc7 {[%clk 0:00:54]}  Nc3 {[%clk 0:00:21]} 25. Bd3 {[%clk 0:00:49]}  Bf6 {[%clk 0:00:19]} 26. g4 {[%clk 0:00:27]}  h6 {[%clk 0:00:19]} 27. h4 {[%clk 0:00:26]}  e6 {[%clk 0:00:17]} 28. g5 {[%clk 0:00:25]}  Bg7 {[%clk 0:00:16]} 29. gxh6 {[%clk 0:00:23]}  Bf6 {[%clk 0:00:16]} 30. h7+ {[%clk 0:00:22]}  Kg7 {[%clk 0:00:17]} 31. h5 {[%clk 0:00:14]}  gxh5 {[%clk 0:00:00]} 32. Kh2 {[%clk 0:00:14]} 1-0


[Site "https://www.chess.com"]

[Event "Titled Tuesday Blitz August 08 Early 2023"]
[White "Warchol, Kamil"]
[Black "UgarteCesar"]
[WhiteFideId "21858241"]
[WhiteElo "2435"]
[BlackElo "2296"]
[Result "1-0"]
[Round "5"]
[TimeControl "180+1"]
[Date "2023.08.08"]
[WhiteClock "0:00:20"]
[BlackClock "0:00:30"]
[Board "190"]

1. e4 {[%clk 0:02:47]}  c5 {[%clk 0:02:58]} 2. Nf3 {[%clk 0:02:45]}  Nc6 {[%clk 0:02:58]} 3. Bb5 {[%clk 0:02:44]}  g6 {[%clk 0:02:57]} 4. O-O {[%clk 0:02:42]}  Bg7 {[%clk 0:02:56]} 5. c3 {[%clk 0:02:42]}  e6 {[%clk 0:02:56]} 6. Bxc6 {[%clk 0:02:41]}  dxc6 {[%clk 0:02:55]} 7. d3 {[%clk 0:02:31]}  Ne7 {[%clk 0:02:55]} 8. Na3 {[%clk 0:02:29]}  O-O {[%clk 0:02:51]} 9. Nc4 {[%clk 0:02:27]}  b6 {[%clk 0:02:50]} 10. a4 {[%clk 0:02:25]}  Ba6 {[%clk 0:02:50]} 11. Bf4 {[%clk 0:02:23]}  Bxc4 {[%clk 0:02:46]} 12. dxc4 {[%clk 0:02:24]}  Qxd1 {[%clk 0:02:46]} 13. Raxd1 {[%clk 0:02:23]}  Rad8 {[%clk 0:02:46]} 14. Bc7 {[%clk 0:02:19]}  Rc8 {[%clk 0:02:34]} 15. Rd7 {[%clk 0:02:18]}  Rfe8 {[%clk 0:02:28]} 16. Bd6 {[%clk 0:02:11]}  Bf8 {[%clk 0:02:27]} 17. Rxa7 {[%clk 0:02:11]}  Ra8 {[%clk 0:02:18]} 18. Rxa8 {[%clk 0:02:07]}  Rxa8 {[%clk 0:02:18]} 19. b3 {[%clk 0:02:08]}  Nc8 {[%clk 0:02:13]} 20. Bxf8 {[%clk 0:02:04]}  Kxf8 {[%clk 0:02:14]} 21. Rd1 {[%clk 0:02:05]}  Ke7 {[%clk 0:01:54]} 22. e5 {[%clk 0:02:01]}  b5 {[%clk 0:01:49]} 23. cxb5 {[%clk 0:01:52]}  cxb5 {[%clk 0:01:50]} 24. axb5 {[%clk 0:01:52]}  Ra3 {[%clk 0:01:48]} 25. Nd2 {[%clk 0:01:34]}  Nb6 {[%clk 0:01:36]} 26. c4 {[%clk 0:01:31]}  Nd7 {[%clk 0:01:34]} 27. f4 {[%clk 0:01:28]}  g5 {[%clk 0:01:33]} 28. g3 {[%clk 0:01:27]}  gxf4 {[%clk 0:01:33]} 29. gxf4 {[%clk 0:01:27]}  f6 {[%clk 0:01:33]} 30. exf6+ {[%clk 0:01:12]}  Nxf6 {[%clk 0:01:33]} 31. Kf2 {[%clk 0:01:10]}  Ra2 {[%clk 0:01:30]} 32. Kf3 {[%clk 0:01:08]}  Rb2 {[%clk 0:01:29]} 33. h3 {[%clk 0:01:04]}  Nd7 {[%clk 0:01:28]} 34. Ke3 {[%clk 0:01:01]}  e5 {[%clk 0:01:27]} 35. Kd3 {[%clk 0:00:57]}  exf4 {[%clk 0:01:26]} 36. Kc3 {[%clk 0:00:57]}  Ra2 {[%clk 0:01:26]} 37. Rf1 {[%clk 0:00:56]}  Kd6 {[%clk 0:01:14]} 38. Rxf4 {[%clk 0:00:51]}  Kc7 {[%clk 0:01:12]} 39. Rf7 {[%clk 0:00:50]}  h6 {[%clk 0:01:10]} 40. Ne4 {[%clk 0:00:50]}  Kd8 {[%clk 0:01:04]} 41. Rh7 {[%clk 0:00:49]}  Re2 {[%clk 0:01:02]} 42. Kd3 {[%clk 0:00:46]}  Rb2 {[%clk 0:01:01]} 43. Kc3 {[%clk 0:00:46]}  Re2 {[%clk 0:01:00]} 44. Nd6 {[%clk 0:00:35]}  Re3+ {[%clk 0:00:59]} 45. Kb2 {[%clk 0:00:35]}  Rxh3 {[%clk 0:00:59]} 46. Rxh6 {[%clk 0:00:33]}  Rd3 {[%clk 0:00:54]} 47. Rh8+ {[%clk 0:00:27]}  Ke7 {[%clk 0:00:52]} 48. Ne4 {[%clk 0:00:27]}  Ne5 {[%clk 0:00:52]} 49. Nxc5 {[%clk 0:00:26]}  Re3 {[%clk 0:00:49]} 50. Rh7+ {[%clk 0:00:24]}  Kd6 {[%clk 0:00:49]} 51. Nb7+ {[%clk 0:00:23]}  Ke6 {[%clk 0:00:48]} 52. c5 {[%clk 0:00:23]}  Re2+ {[%clk 0:00:45]} 53. Kc3 {[%clk 0:00:23]}  Re3+ {[%clk 0:00:45]} 54. Kb4 {[%clk 0:00:23]}  Nd3+ {[%clk 0:00:44]} 55. Ka5 {[%clk 0:00:23]}  Ne5 {[%clk 0:00:38]} 56. c6 {[%clk 0:00:20]}  Rxb3 {[%clk 0:00:30]} 57. Nc5+ {[%clk 0:00:20]} 1-0


[Site "https://www.chess.com"]

[Event "Titled Tuesday Blitz August 08 Early 2023"]
[White "Tqebuchava, Zurab"]
[Black "Khromkin, Andrey"]
[WhiteFideId "13601113"]
[BlackFideId "4154126"]
[WhiteElo "2261"]
[BlackElo "2409"]
[Result "0-1"]
[Round "5"]
[TimeControl "180+1"]
[Date "2023.08.08"]
[WhiteClock "0:00:02"]
[BlackClock "0:00:16"]
[Board "198"]

1. e4 {[%clk 0:03:00]}  c5 {[%clk 0:01:36]} 2. Nf3 {[%clk 0:02:59]}  Nc6 {[%clk 0:01:36]} 3. Bb5 {[%clk 0:02:58]}  g6 {[%clk 0:01:35]} 4. O-O {[%clk 0:02:58]}  Bg7 {[%clk 0:01:36]} 5. Re1 {[%clk 0:02:57]}  Nf6 {[%clk 0:01:36]} 6. e5 {[%clk 0:02:56]}  Nd5 {[%clk 0:01:36]} 7. Nc3 {[%clk 0:02:57]}  Nc7 {[%clk 0:01:37]} 8. Bf1 {[%clk 0:02:48]}  O-O {[%clk 0:01:36]} 9. Ne4 {[%clk 0:02:43]}  b6 {[%clk 0:01:32]} 10. Ng3 {[%clk 0:02:40]}  d5 {[%clk 0:01:32]} 11. h4 {[%clk 0:02:34]}  Bg4 {[%clk 0:01:31]} 12. d4 {[%clk 0:01:55]}  cxd4 {[%clk 0:01:30]} 13. Bf4 {[%clk 0:01:53]}  Ne6 {[%clk 0:01:28]} 14. Qd2 {[%clk 0:01:10]}  Bxf3 {[%clk 0:01:26]} 15. gxf3 {[%clk 0:01:10]}  Nxf4 {[%clk 0:01:22]} 16. Qxf4 {[%clk 0:01:10]}  Qc7 {[%clk 0:01:22]} 17. h5 {[%clk 0:00:57]}  Bxe5 {[%clk 0:01:21]} 18. Qg4 {[%clk 0:00:52]}  Qc8 {[%clk 0:01:10]} 19. hxg6 {[%clk 0:00:45]}  hxg6 {[%clk 0:01:08]} 20. Qg5 {[%clk 0:00:32]}  Bf6 {[%clk 0:00:58]} 21. Qxd5 {[%clk 0:00:31]}  Kg7 {[%clk 0:00:51]} 22. Bc4 {[%clk 0:00:25]}  Nb4 {[%clk 0:00:47]} 23. Qb5 {[%clk 0:00:19]}  Nxc2 {[%clk 0:00:46]} 24. Rac1 {[%clk 0:00:09]}  Nxe1 {[%clk 0:00:46]} 25. Rxe1 {[%clk 0:00:09]}  Qc5 {[%clk 0:00:45]} 26. Qb3 {[%clk 0:00:08]}  Rac8 {[%clk 0:00:43]} 27. Bd3 {[%clk 0:00:06]}  Qg5 {[%clk 0:00:42]} 28. Kg2 {[%clk 0:00:06]}  Rh8 {[%clk 0:00:40]} 29. Rh1 {[%clk 0:00:03]}  Rxh1 {[%clk 0:00:39]} 30. Kxh1 {[%clk 0:00:04]}  Be5 {[%clk 0:00:35]} 31. Kg2 {[%clk 0:00:03]}  f5 {[%clk 0:00:32]} 32. Qe6 {[%clk 0:00:03]}  f4 {[%clk 0:00:17]} 33. Qxc8 {[%clk 0:00:03]}  fxg3 {[%clk 0:00:18]} 34. fxg3 {[%clk 0:00:02]}  Qxg3+ {[%clk 0:00:17]} 35. Kf1 {[%clk 0:00:03]}  Qxf3+ {[%clk 0:00:18]} 36. Ke1 {[%clk 0:00:03]}  Qxd3 {[%clk 0:00:16]} 37. Qe6 {[%clk 0:00:03]}  Qe3+ {[%clk 0:00:16]} 38. Kd1 {[%clk 0:00:03]}  Qd3+ {[%clk 0:00:15]} 39. Ke1 {[%clk 0:00:02]}  Bg3# {[%clk 0:00:16]} 0-1


[Site "https://www.chess.com"]

[Event "Titled Tuesday Blitz August 08 Early 2023"]
[White "Bueno, Alfeu Junior Varela"]
[Black "Zaichenko, Daria"]
[WhiteFideId "2108879"]
[BlackFideId "4197453"]
[WhiteElo "2403"]
[BlackElo "2232"]
[Result "1-0"]
[Round "5"]
[TimeControl "180+1"]
[Date "2023.08.08"]
[WhiteClock "0:01:10"]
[BlackClock "0:00:14"]
[Board "201"]

1. e4 {[%clk 0:03:00]}  c5 {[%clk 0:01:56]} 2. Nc3 {[%clk 0:02:58]}  Nc6 {[%clk 0:01:51]} 3. f4 {[%clk 0:02:59]}  g6 {[%clk 0:01:49]} 4. Nf3 {[%clk 0:02:59]}  Bg7 {[%clk 0:01:47]} 5. Bb5 {[%clk 0:03:00]}  Nd4 {[%clk 0:01:44]} 6. O-O {[%clk 0:02:58]}  a6 {[%clk 0:01:41]} 7. Bc4 {[%clk 0:02:58]}  e6 {[%clk 0:01:39]} 8. d3 {[%clk 0:02:58]}  b5 {[%clk 0:01:38]} 9. Bb3 {[%clk 0:02:58]}  Ne7 {[%clk 0:01:38]} 10. Nxd4 {[%clk 0:02:58]}  Bxd4+ {[%clk 0:01:34]} 11. Kh1 {[%clk 0:02:58]}  Bb7 {[%clk 0:01:34]} 12. Ne2 {[%clk 0:02:55]}  Bg7 {[%clk 0:01:31]} 13. c3 {[%clk 0:02:55]}  Qc7 {[%clk 0:01:31]} 14. Be3 {[%clk 0:02:42]}  d5 {[%clk 0:01:24]} 15. Ng3 {[%clk 0:02:36]}  Qc6 {[%clk 0:01:19]} 16. Qe2 {[%clk 0:02:27]}  O-O-O {[%clk 0:01:14]} 17. a4 {[%clk 0:02:22]}  f5 {[%clk 0:01:03]} 18. axb5 {[%clk 0:02:14]}  axb5 {[%clk 0:01:03]} 19. e5 {[%clk 0:02:13]}  c4 {[%clk 0:00:59]} 20. Bc2 {[%clk 0:02:11]}  g5 {[%clk 0:00:54]} 21. Nh5 {[%clk 0:02:09]}  Rhg8 {[%clk 0:00:54]} 22. Nxg7 {[%clk 0:02:09]}  Rxg7 {[%clk 0:00:54]} 23. fxg5 {[%clk 0:02:09]}  Ng6 {[%clk 0:00:53]} 24. d4 {[%clk 0:02:07]}  f4 {[%clk 0:00:39]} 25. Bxf4 {[%clk 0:02:00]}  Nxf4 {[%clk 0:00:39]} 26. Rxf4 {[%clk 0:02:01]}  Rxg5 {[%clk 0:00:40]} 27. Rf7 {[%clk 0:01:28]}  Rdg8 {[%clk 0:00:27]} 28. Ra7 {[%clk 0:01:28]}  Rxg2 {[%clk 0:00:25]} 29. Qxg2 {[%clk 0:01:25]}  Rxg2 {[%clk 0:00:24]} 30. Kxg2 {[%clk 0:01:26]}  Qe8 {[%clk 0:00:19]} 31. Raxb7 {[%clk 0:01:19]}  Qg8+ {[%clk 0:00:19]} 32. Rg7 {[%clk 0:01:18]}  Qf8 {[%clk 0:00:19]} 33. Rbf7 {[%clk 0:01:18]}  Qd8 {[%clk 0:00:18]} 34. Bxh7 {[%clk 0:01:13]}  b4 {[%clk 0:00:14]} 35. Rg8 {[%clk 0:01:10]} 1-0


[Site "https://www.chess.com"]

[Event "Titled Tuesday Blitz August 08 Early 2023"]
[White "Vedder, Richard"]
[Black "campochess"]
[WhiteFideId "1004166"]
[WhiteElo "2403"]
[BlackElo "2226"]
[Result "1-0"]
[Round "5"]
[TimeControl "180+1"]
[Date "2023.08.08"]
[WhiteClock "0:00:15"]
[BlackClock "0:00:00"]
[Board "202"]

1. d4 {[%clk 0:02:59]}  c5 {[%clk 0:02:57]} 2. d5 {[%clk 0:02:58]}  Nf6 {[%clk 0:02:55]} 3. Nc3 {[%clk 0:02:58]}  g6 {[%clk 0:02:54]} 4. e4 {[%clk 0:02:58]}  d6 {[%clk 0:02:54]} 5. Nf3 {[%clk 0:02:58]}  a6 {[%clk 0:02:51]} 6. a4 {[%clk 0:02:56]}  Bg7 {[%clk 0:02:49]} 7. Be2 {[%clk 0:02:56]}  O-O {[%clk 0:02:48]} 8. O-O {[%clk 0:02:56]}  e5 {[%clk 0:02:47]} 9. dxe6 {[%clk 0:02:52]}  fxe6 {[%clk 0:02:45]} 10. Bg5 {[%clk 0:02:50]}  Nc6 {[%clk 0:02:42]} 11. Qd2 {[%clk 0:02:46]}  Qc7 {[%clk 0:02:41]} 12. Rfd1 {[%clk 0:02:46]}  Ne8 {[%clk 0:02:40]} 13. Bc4 {[%clk 0:02:42]}  Nd4 {[%clk 0:02:37]} 14. Be2 {[%clk 0:02:32]}  Nxe2+ {[%clk 0:02:31]} 15. Qxe2 {[%clk 0:02:33]}  Bd7 {[%clk 0:02:24]} 16. Nd2 {[%clk 0:02:19]}  h6 {[%clk 0:02:24]} 17. Bh4 {[%clk 0:02:15]}  Nf6 {[%clk 0:02:20]} 18. Bg3 {[%clk 0:02:14]}  e5 {[%clk 0:02:19]} 19. Nc4 {[%clk 0:02:11]}  Ne8 {[%clk 0:02:12]} 20. Nd5 {[%clk 0:02:08]}  Qd8 {[%clk 0:02:10]} 21. Rd2 {[%clk 0:01:42]}  Kh8 {[%clk 0:02:08]} 22. b3 {[%clk 0:01:40]}  Rb8 {[%clk 0:02:05]} 23. a5 {[%clk 0:01:39]}  Bb5 {[%clk 0:02:03]} 24. Rad1 {[%clk 0:01:37]}  Bxc4 {[%clk 0:01:59]} 25. Qxc4 {[%clk 0:01:38]}  Qxa5 {[%clk 0:01:58]} 26. Ne7 {[%clk 0:01:31]}  Rf6 {[%clk 0:01:51]} 27. Bh4 {[%clk 0:01:27]}  g5 {[%clk 0:01:50]} 28. Bg3 {[%clk 0:01:27]}  b5 {[%clk 0:01:48]} 29. Qe2 {[%clk 0:01:23]}  Qd8 {[%clk 0:01:31]} 30. Nf5 {[%clk 0:01:23]}  Bf8 {[%clk 0:01:30]} 31. Bxe5 {[%clk 0:01:21]}  Kh7 {[%clk 0:01:26]} 32. Bxf6 {[%clk 0:01:20]}  Qxf6 {[%clk 0:01:26]} 33. Ne3 {[%clk 0:01:09]}  Rb7 {[%clk 0:01:23]} 34. Nd5 {[%clk 0:01:10]}  Qe5 {[%clk 0:01:22]} 35. Qg4 {[%clk 0:01:08]}  Rf7 {[%clk 0:01:21]} 36. f3 {[%clk 0:01:08]}  Ng7 {[%clk 0:01:19]} 37. Ne3 {[%clk 0:01:04]}  h5 {[%clk 0:01:16]} 38. Qh3 {[%clk 0:01:04]}  Qf4 {[%clk 0:01:06]} 39. Nf5 {[%clk 0:01:00]}  Nxf5 {[%clk 0:00:55]} 40. exf5 {[%clk 0:01:01]}  Kh6 {[%clk 0:00:51]} 41. g4 {[%clk 0:00:51]}  h4 {[%clk 0:00:49]} 42. Qg2 {[%clk 0:00:51]}  Re7 {[%clk 0:00:49]} 43. Re2 {[%clk 0:00:49]}  c4 {[%clk 0:00:39]} 44. Rde1 {[%clk 0:00:41]}  Re5 {[%clk 0:00:34]} 45. Qf2 {[%clk 0:00:33]}  Bg7 {[%clk 0:00:28]} 46. Kg2 {[%clk 0:00:29]}  cxb3 {[%clk 0:00:25]} 47. cxb3 {[%clk 0:00:28]}  Qb4 {[%clk 0:00:25]} 48. Rxe5 {[%clk 0:00:25]}  Bxe5 {[%clk 0:00:24]} 49. Rd1 {[%clk 0:00:23]}  Qf4 {[%clk 0:00:20]} 50. Kg1 {[%clk 0:00:20]}  h3 {[%clk 0:00:19]} 51. Rd2 {[%clk 0:00:16]}  a5 {[%clk 0:00:18]} 52. Qf1 {[%clk 0:00:16]}  Bd4+ {[%clk 0:00:17]} 53. Kh1 {[%clk 0:00:16]}  Qxd2 {[%clk 0:00:17]} 54. Qxh3+ {[%clk 0:00:16]}  Kg7 {[%clk 0:00:17]} 55. f6+ {[%clk 0:00:17]}  Bxf6 {[%clk 0:00:15]} 56. Qf1 {[%clk 0:00:16]}  Qe3 {[%clk 0:00:14]} 57. Kg2 {[%clk 0:00:16]}  Bd4 {[%clk 0:00:14]} 58. Qxb5 {[%clk 0:00:15]}  Qd2+ {[%clk 0:00:12]} 59. Kg3 {[%clk 0:00:14]}  Qf4+ {[%clk 0:00:12]} 60. Kg2 {[%clk 0:00:14]}  Be5 {[%clk 0:00:11]} 61. Qd7+ {[%clk 0:00:13]}  Kh6 {[%clk 0:00:11]} 62. Qe6+ {[%clk 0:00:14]}  Kg7 {[%clk 0:00:10]} 63. Qd7+ {[%clk 0:00:14]}  Kg8 {[%clk 0:00:08]} 64. Qe6+ {[%clk 0:00:14]}  Qf7 {[%clk 0:00:06]} 65. Qc8+ {[%clk 0:00:14]}  Kg7 {[%clk 0:00:06]} 66. Qc2 {[%clk 0:00:15]}  Qd5 {[%clk 0:00:06]} 67. Qc7+ {[%clk 0:00:14]}  Kf6 {[%clk 0:00:04]} 68. Qd8+ {[%clk 0:00:14]}  Kg7 {[%clk 0:00:04]} 69. Qd7+ {[%clk 0:00:14]}  Qf7 {[%clk 0:00:04]} 70. Qc6 {[%clk 0:00:13]}  Qxb3 {[%clk 0:00:04]} 71. Qc7+ {[%clk 0:00:13]}  Qf7 {[%clk 0:00:04]} 72. Qxa5 {[%clk 0:00:14]}  Qc7 {[%clk 0:00:03]} 73. Qxc7+ {[%clk 0:00:14]}  Kf6 {[%clk 0:00:03]} 74. Qd8+ {[%clk 0:00:14]}  Ke6 {[%clk 0:00:02]} 75. Qe8+ {[%clk 0:00:14]}  Kd5 {[%clk 0:00:02]} 76. Qg8+ {[%clk 0:00:14]}  Kd4 {[%clk 0:00:00]} 77. Qxg5 {[%clk 0:00:15]} 1-0


[Site "https://www.chess.com"]

[Event "Titled Tuesday Blitz August 08 Early 2023"]
[White "Dishman, Stephen"]
[Black "Luxama, Jacques Muller"]
[WhiteFideId "403024"]
[BlackFideId "11900113"]
[WhiteElo "2395"]
[BlackElo "2207"]
[Result "1-0"]
[Round "5"]
[TimeControl "180+1"]
[Date "2023.08.08"]
[WhiteClock "0:00:15"]
[BlackClock "0:00:00"]
[Board "205"]

1. c4 {[%clk 0:03:00]}  e6 {[%clk 0:02:58]} 2. Nf3 {[%clk 0:03:00]}  d5 {[%clk 0:02:58]} 3. d4 {[%clk 0:03:00]}  dxc4 {[%clk 0:02:58]} 4. g3 {[%clk 0:02:59]}  c5 {[%clk 0:02:51]} 5. Bg2 {[%clk 0:02:58]}  Nc6 {[%clk 0:02:48]} 6. O-O {[%clk 0:02:51]}  cxd4 {[%clk 0:02:47]} 7. Qa4 {[%clk 0:02:50]}  Bd7 {[%clk 0:02:45]} 8. Qxc4 {[%clk 0:02:49]}  e5 {[%clk 0:02:43]} 9. e3 {[%clk 0:02:20]}  Rc8 {[%clk 0:02:40]} 10. Qb3 {[%clk 0:01:54]}  dxe3 {[%clk 0:02:36]} 11. Bxe3 {[%clk 0:01:53]}  Nf6 {[%clk 0:02:36]} 12. Ng5 {[%clk 0:01:50]}  Qe7 {[%clk 0:02:22]} 13. Rd1 {[%clk 0:01:35]}  Be6 {[%clk 0:02:10]} 14. Nxe6 {[%clk 0:01:32]}  Qxe6 {[%clk 0:02:10]} 15. Qxb7 {[%clk 0:01:28]}  Nd8 {[%clk 0:01:58]} 16. Qb5+ {[%clk 0:01:15]}  Nd7 {[%clk 0:01:52]} 17. Nc3 {[%clk 0:01:11]}  Bc5 {[%clk 0:01:48]} 18. Bxc5 {[%clk 0:00:43]}  Rxc5 {[%clk 0:01:47]} 19. Qa4 {[%clk 0:00:43]}  Nc6 {[%clk 0:01:42]} 20. Ne4 {[%clk 0:00:39]}  Ra5 {[%clk 0:01:08]} 21. Nd6+ {[%clk 0:00:34]}  Qxd6 {[%clk 0:01:06]} 22. Qxc6 {[%clk 0:00:34]}  Qe7 {[%clk 0:00:24]} 23. Qc8+ {[%clk 0:00:24]}  Qd8 {[%clk 0:00:24]} 24. Qxd8+ {[%clk 0:00:24]}  Kxd8 {[%clk 0:00:22]} 25. Bh3 {[%clk 0:00:24]}  Ke7 {[%clk 0:00:15]} 26. Rxd7+ {[%clk 0:00:23]}  Kf6 {[%clk 0:00:15]} 27. a3 {[%clk 0:00:19]}  Rb8 {[%clk 0:00:14]} 28. b4 {[%clk 0:00:19]}  Rxb4 {[%clk 0:00:14]} 29. Rc1 {[%clk 0:00:18]}  Rb2 {[%clk 0:00:13]} 30. Rc6+ {[%clk 0:00:18]}  Kg5 {[%clk 0:00:11]} 31. Rxf7 {[%clk 0:00:19]}  g6 {[%clk 0:00:10]} 32. Re7 {[%clk 0:00:18]}  Rd5 {[%clk 0:00:07]} 33. Rxh7 {[%clk 0:00:17]}  Rdd2 {[%clk 0:00:06]} 34. Rf7 {[%clk 0:00:16]}  Ra2 {[%clk 0:00:04]} 35. Bc8 {[%clk 0:00:16]}  Rxa3 {[%clk 0:00:03]} 36. h4+ {[%clk 0:00:16]}  Kh6 {[%clk 0:00:02]} 37. Bg4 {[%clk 0:00:15]}  Raa2 {[%clk 0:00:00]} 38. Rcc7 {[%clk 0:00:15]} 1-0


[Site "https://www.chess.com"]